fUSD/lending_fUSD_20241123
["ID","MTS","AMOUNT","RATE_DAILY","PERIOD"]
[343164262,1732390242640,-1558.88738,0.0005543,75]
[343164264,1732390242650,-26824.8635,0.0005544,2]
[343164266,1732390242660,-150.0,0.00055469,14]
[343164268,1732390242670,-150.0,0.00055475,14]
[343164270,1732390242680,-2110.0,0.0005549,30]
[343164272,1732390242691,-400.0,0.000555,20]
[343164274,1732390242702,-400.0,0.000556,20]
[343164277,1732390242712,-1558.88738,0.0005564,76]
[343164279,1732390242723,-502.8272821,0.00055671,60]
[343164281,1732390242734,-1500.0,0.00055677,30]
[343164283,1732390242745,-1500.0,0.00055678,30]
[343164285,1732390242755,-150.0,0.00055682,14]
[343164287,1732390242764,-150.0,0.00055692,30]
[343164289,1732390242774,-523.54,0.00055699,120]
[343164291,1732390242783,-1653.0,0.000557,7]
[343164294,1732390242793,-400.0,0.000557,20]
[343164296,1732390242802,-150.0,0.00055705,30]
[343164298,1732390242813,-150.0,0.00055716,30]
[343164300,1732390242822,-150.0,0.00055717,14]
[343164303,1732390242833,-150.0,0.00055719,30]
[343164305,1732390242842,-150.0,0.00055722,14]
[343164307,1732390242851,-150.0,0.00055722,14]
[343164308,1732390242862,-150.0,0.00055722,14]
[343164310,1732390242872,-150.0,0.00055725,14]
[343164312,1732390242883,-150.0,0.00055726,14]
[343164314,1732390242893,-150.0,0.00055726,30]
[343164316,1732390242902,-150.0,0.00055728,14]
[343164318,1732390242912,-150.0,0.0005573,14]
[343164320,1732390242921,-174.69460653,0.00055735,30]
[343164322,1732390242931,-150.0,0.00055736,14]
[343164324,1732390242941,-1314.32878896,0.00055736,30]
[343164326,1732390242951,-150.0,0.00055739,14]
[343164328,1732390242961,-150.0,0.00055739,14]
[343164330,1732390242970,-150.0,0.0005574,14]
[343164332,1732390242980,-150.0,0.00055741,14]
[343164334,1732390242990,-150.0,0.00055753,14]
[343164336,1732390242999,-150.0,0.00055753,14]
[343164338,1732390243010,-150.0,0.00055755,14]
[343164340,1732390243020,-150.0,0.00055756,14]
[343164342,1732390243030,-150.0,0.00055762,14]
[343164344,1732390243039,-150.0,0.00055766,14]
[343164346,1732390243050,-500.0,0.00055768,120]
[343164348,1732390243059,-574.32396932,0.00055769,120]
[343164350,1732390243069,-150.0,0.00055769,14]
[343164352,1732390243080,-150.0,0.00055774,14]
[343164354,1732390243089,-150.0,0.00055776,14]
[343164355,1732390243099,-150.0,0.00055776,14]
[343164356,1732390243109,-150.0,0.00055777,14]
[343164357,1732390243119,-150.0,0.00055778,14]
[343164358,1732390243129,-150.0,0.00055782,14]
[343164359,1732390243138,-500.0,0.00055783,120]
[343164360,1732390243147,-500.0,0.00055783,120]
[343164361,1732390243157,-729.99,0.00055783,120]
[343164362,1732390243166,-500.0,0.00055783,120]
[343164363,1732390243176,-500.0,0.00055783,120]
[343164364,1732390243185,-1128.62,0.00055783,120]
[343164365,1732390243194,-150.0,0.00055784,14]
[343164366,1732390243203,-150.0,0.00055784,14]
[343164367,1732390243212,-150.0,0.00055784,30]
[343164368,1732390243221,-150.0,0.00055792,14]
[343164369,1732390243230,-150.0,0.00055792,14]
[343164370,1732390243239,-150.0,0.00055794,14]
[343164371,1732390243248,-150.0,0.00055795,14]
[343164372,1732390243258,-150.0,0.00055795,30]
[343164373,1732390243268,-150.0,0.00055797,14]
[343164374,1732390243277,-150.0,0.00055798,14]
[343164375,1732390243287,-6871.88307643,0.000558,3]
[343164376,1732390243297,-400.0,0.000558,20]
[343164377,1732390243306,-150.0,0.00055802,14]
[343164378,1732390243316,-150.0,0.00055803,30]
[343164379,1732390243326,-150.0,0.00055806,14]
[343164380,1732390243336,-150.0,0.00055808,14]
[343164381,1732390243345,-150.0,0.00055811,14]
[343164382,1732390243359,-150.0,0.00055814,14]
[343164383,1732390243369,-150.0,0.00055816,14]
[343164384,1732390243378,-150.0,0.00055824,14]
[343164385,1732390243388,-150.0,0.00055824,14]
[343164386,1732390243402,-150.0,0.00055825,14]
[343164387,1732390243412,-150.0,0.00055829,14]
[343164388,1732390243421,-150.0,0.00055831,14]
[343164389,1732390243433,-150.0,0.00055833,14]
[343164390,1732390243443,-150.0,0.00055834,14]
[343164391,1732390243457,-150.0,0.00055836,14]
[343164392,1732390243467,-150.0,0.00055836,14]
[343164393,1732390243477,-150.0,0.00055836,14]
[343164394,1732390243487,-150.0,0.00055839,14]
[343164395,1732390243496,-150.0,0.0005584,14]
[343164396,1732390243505,-150.0,0.00055841,14]
[343164397,1732390243515,-230.67923568,0.00055843,14]
[343164398,1732390243525,-150.0,0.00055844,14]
[343164399,1732390243535,-150.0,0.00055845,14]
[343164400,1732390243545,-150.0,0.00055847,14]
[343164401,1732390243555,-150.0,0.00055849,14]
[343164402,1732390243566,-150.0,0.00055849,14]
[343164403,1732390243577,-150.0,0.00055851,14]
[343164404,1732390243587,-150.0,0.00055851,14]
[343164405,1732390243597,-150.0,0.00055851,14]
[343164406,1732390243608,-332269.35794088,0.00055851,2]
[343164407,1732390243618,-150.0,0.00055854,14]
[343164408,1732390243628,-1241.72676417,0.00055857,2]
[343164409,1732390243639,-150.0,0.00055858,14]
[343164410,1732390243649,-150.0,0.00055858,14]
[343164411,1732390243659,-150.0,0.00055859,14]
[343164412,1732390243669,-150.0,0.00055861,30]
[343164413,1732390243679,-150.0,0.00055864,14]
[343164414,1732390243689,-2903.53240262,0.00055864,2]
[343164415,1732390243699,-2903.53240261,0.00055865,2]
[343164416,1732390243711,-150.0,0.00055866,14]
[343164417,1732390243721,-500.0,0.00055869,120]
[343164418,1732390243731,-705.28,0.00055869,120]
[343164419,1732390243742,-150.0,0.0005587,14]
[343164420,1732390243752,-150.0,0.0005587,14]
[343164421,1732390243761,-150.0,0.0005587,14]
[343164422,1732390243772,-150.0,0.0005587,14]
[343164423,1732390243782,-123437.57480651,0.0005587,120]
[343164424,1732390243793,-332269.35794088,0.0005587,2]
[343164425,1732390243803,-150.0,0.00055871,14]
[343164426,1732390243813,-150.0,0.00055872,14]
[343164427,1732390243823,-150.0,0.00055872,14]
[343164428,1732390243833,-150.0,0.00055873,14]
[343164429,1732390243842,-150.0,0.00055874,14]
[343164430,1732390243852,-150.0,0.00055875,14]
[343164431,1732390243863,-150.0,0.00055875,14]
[343164432,1732390243872,-150.0,0.00055878,14]
[343164433,1732390243882,-150.0,0.00055879,14]
[343164434,1732390243892,-150.0,0.00055879,14]
[343164435,1732390243901,-150.0,0.0005588,14]
[343164436,1732390243911,-4972.65977902,0.00055886,2]
[343164437,1732390243921,-1500.0,0.00055889,30]
[343164438,1732390243931,-501.19721376,0.0005589,62]
[343164439,1732390243941,-264.77691803,0.0005589,28]
[343164440,1732390243951,-981.49246679,0.0005589,2]
[343164441,1732390243961,-151.0,0.0005589,120]
[343164442,1732390243971,-6534.25919099,0.0005589,120]
[343164443,1732390243981,-6534.25919099,0.0005589,120]
[343164444,1732390243990,-6534.25919099,0.0005589,120]
[343164445,1732390244000,-6534.25919099,0.0005589,120]
[343164446,1732390244011,-6534.25919099,0.0005589,120]
[343164447,1732390244020,-6534.25919099,0.0005589,120]
[343164448,1732390244030,-6534.25919099,0.0005589,120]
[343164449,1732390244040,-6534.25919099,0.0005589,120]
[343164450,1732390244050,-6534.25919099,0.0005589,120]
[343164451,1732390244060,-6534.25919099,0.0005589,120]
[343164452,1732390244070,-6534.25919099,0.0005589,120]
[343164453,1732390244079,-6534.25919099,0.0005589,120]
[343164454,1732390244089,-6534.25919099,0.0005589,120]
[343164455,1732390244099,-6534.25919099,0.0005589,120]
[343164456,1732390244109,-6534.25919099,0.0005589,120]
[343164457,1732390244119,-6534.25919099,0.0005589,120]
[343164458,1732390244129,-6534.25919099,0.0005589,120]
[343164459,1732390244139,-6534.25919099,0.0005589,120]
[343164460,1732390244149,-6534.25919099,0.0005589,120]
[343164461,1732390244159,-6534.25,0.0005589,120]
[343164462,1732390244168,-9801.38878648,0.0005589,120]
[343164463,1732390244178,-9801.38878648,0.0005589,120]
[343164464,1732390244188,-9801.38878648,0.0005589,120]
[343164465,1732390244197,-9801.38878648,0.0005589,120]
[343164466,1732390244207,-9801.38878648,0.0005589,120]
[343164467,1732390244216,-9801.38878648,0.0005589,120]
[343164468,1732390244226,-9801.38878648,0.0005589,120]
[343164469,1732390244236,-9801.38878648,0.0005589,120]
[343164470,1732390244245,-9801.38878648,0.0005589,120]
[343164471,1732390244255,-9801.38878648,0.0005589,120]
[343164472,1732390244264,-9801.38878648,0.0005589,120]
[343164473,1732390244275,-9801.38878648,0.0005589,120]
[343164474,1732390244285,-9801.38878648,0.0005589,120]
[343164475,1732390244294,-9801.38878648,0.0005589,120]
[343164476,1732390244304,-9801.38878648,0.0005589,120]
[343164477,1732390244314,-9801.38878648,0.0005589,120]
[343164478,1732390244323,-9801.38878648,0.0005589,120]
[343164479,1732390244332,-9801.38878648,0.0005589,120]
[343164480,1732390244342,-9801.38878648,0.0005589,120]
[343164481,1732390244353,-9801.38,0.0005589,120]
[343164482,1732390244365,-180.25496572,0.0005589,120]
[343164483,1732390244374,-180.25,0.0005589,120]
[343164484,1732390244384,-180.25496572,0.0005589,120]
[343164485,1732390244394,-180.25496572,0.0005589,120]
[343164486,1732390244405,-180.25,0.0005589,120]
[343164487,1732390244415,-117898.74465763,0.00055893,31]
[343164488,1732390244425,-4972.65977902,0.00055893,2]
[343164489,1732390244436,-19406.21365101,0.00055893,2]
[343164490,1732390244446,-4972.65977902,0.00055895,2]
[343164491,1732390244456,-150.0,0.00055896,14]
[343164492,1732390244466,-5000.0,0.000559,120]
[343164493,1732390244476,-150.0,0.000559,120]
[343164494,1732390244485,-359.0,0.000559,3]
[343164495,1732390244495,-150.0,0.000559,14]
[343164496,1732390244505,-158.0,0.000559,72]
[343164497,1732390244515,-3296.35596991,0.000559,5]
[343164498,1732390244524,-19406.21365101,0.00055901,2]
[343164499,1732390244534,-3315.10651944,0.00055901,2]
[343164500,1732390244544,-150.0,0.00055907,14]
[343164501,1732390244554,-150.0,0.00055908,14]
[343164502,1732390244565,-150.0,0.00055915,14]
[343164503,1732390244575,-150.0,0.00055916,14]
[343164504,1732390244584,-150.0,0.00055917,14]
[343164505,1732390244594,-500.0,0.00055917,120]
[343164506,1732390244604,-500.0,0.00055917,120]
[343164507,1732390244614,-705.28,0.00055917,120]
[343164508,1732390244624,-705.28,0.00055917,120]
[343164509,1732390244634,-333971.94808698,0.00055918,2]
[343164510,1732390244644,-150.0,0.00055919,30]
[343164511,1732390244655,-150.0,0.0005592,14]
[343164512,1732390244664,-150.0,0.0005592,14]
[343164513,1732390244674,-150.0,0.00055925,14]
[343164514,1732390244684,-1500.0,0.00055925,30]
[343164515,1732390244694,-291.86226194,0.00055929,14]
[343164516,1732390244704,-500.0,0.00055933,120]
[343164517,1732390244714,-705.28,0.00055933,120]
[343164518,1732390244725,-333971.94808698,0.00055934,2]
[343164519,1732390244735,-150.0,0.00055938,14]
[343164520,1732390244744,-18725.779158,0.00055938,2]
[343164521,1732390244754,-19406.21365102,0.00055939,2]
[343164522,1732390244763,-151.0,0.00055939,120]
[343164523,1732390244773,-151.0,0.00055939,120]
[343164524,1732390244783,-151.0,0.00055939,120]
[343164525,1732390244793,-150.0,0.00055942,14]
[343164526,1732390244803,-150.0,0.00055946,14]
[343164527,1732390244812,-150.0,0.00055946,14]
[343164528,1732390244823,-150.0,0.00055947,14]
[343164529,1732390244869,-150.0,0.00055949,14]
[343164530,1732390244880,-2903.53240261,0.00055949,2]
[343164531,1732390244889,-150.0,0.0005595,14]
[343164532,1732390244899,-37728.56505568,0.00055955,2]
[343164533,1732390244909,-150.0,0.00055957,14]
[343164534,1732390244919,-150.0,0.00055962,14]
[343164535,1732390244928,-1500.0,0.00055964,30]
[343164536,1732390244938,-18725.779158,0.00055967,2]
[343164537,1732390244947,-150.0,0.00055968,14]
[343164538,1732390244957,-500.0,0.00055968,120]
[343164539,1732390244966,-705.28,0.00055968,120]
[343164540,1732390244976,-37728.56505568,0.00055969,2]
[343164541,1732390244986,-4972.65977902,0.00055969,2]
[343164542,1732390244995,-24286.60753719,0.0005597,120]
[343164543,1732390245005,-3315.10651944,0.00055971,2]
[343164544,1732390245015,-150.0,0.00055972,30]
[343164545,1732390245024,-2903.53240262,0.00055973,2]
[343164546,1732390245034,-150.0,0.00055975,14]
[343164547,1732390245043,-150.0,0.00055977,14]
[343164548,1732390245053,-1732.0,0.00055978,61]
[343164549,1732390245062,-150.0,0.00055981,14]
[343164550,1732390245071,-150.0,0.00055982,14]
[343164551,1732390245081,-176.47,0.00055986,2]
[343164552,1732390245090,-114174.26239479,0.00055986,7]
[343164553,1732390245100,-500.0,0.00055988,120]
[343164554,1732390245111,-705.28,0.00055988,120]
[343164555,1732390245120,-2980.58775526,0.00055988,60]
[343164556,1732390245130,-500.0,0.00055989,120]
[343164557,1732390245139,-20332.07241152,0.00055989,120]
[343164558,1732390245148,-1395.96229919,0.00055989,120]
[343164559,1732390245158,-500.0,0.00055989,120]
[343164560,1732390245167,-500.0,0.00055989,120]
[343164561,1732390245177,-243.23,0.00055989,120]
[343164562,1732390245186,-500.0,0.00055989,120]
[343164563,1732390245196,-500.0,0.00055989,120]
[343164564,1732390245206,-500.0,0.00055989,120]
[343164565,1732390245216,-500.0,0.00055989,120]
[343164566,1732390245225,-500.0,0.00055989,120]
[343164567,1732390245235,-500.0,0.00055989,120]
[343164568,1732390245244,-500.0,0.00055989,120]
[343164569,1732390245254,-500.0,0.00055989,120]
[343164570,1732390245264,-500.0,0.00055989,120]
[343164571,1732390245273,-500.0,0.00055989,120]
[343164572,1732390245283,-500.0,0.00055989,120]
[343164573,1732390245292,-500.0,0.00055989,120]
[343164574,1732390245302,-458.68801019,0.00055989,120]
[343164575,1732390245311,-1477.88200041,0.00055989,120]
[343164576,1732390245320,-500.0,0.00055989,120]
[343164577,1732390245330,-492.33035,0.00055989,120]
[343164578,1732390245341,-233.2,0.00055989,120]
[343164579,1732390245350,-240.61023649,0.00055989,120]
[343164580,1732390245363,-500.0,0.00055989,54]
[343164581,1732390245372,-500.0,0.00055989,54]
[343164582,1732390245381,-500.0,0.00055989,54]
[343164583,1732390245390,-500.0,0.00055989,54]
[343164584,1732390245402,-500.0,0.00055989,54]
[343164586,1732390245411,-500.0,0.00055989,54]
[343164588,1732390245420,-500.0,0.00055989,54]
[343164589,1732390245432,-500.0,0.00055989,54]
[343164590,1732390245442,-500.0,0.00055989,54]
[343164591,1732390245451,-500.0,0.00055989,54]
[343164592,1732390245460,-447.12489817,0.00055989,54]
[343164593,1732390245469,-500.0,0.00055989,120]
[343164594,1732390245478,-500.0,0.00055989,120]
[343164595,1732390245488,-500.0,0.00055989,120]
[343164596,1732390245497,-500.0,0.00055989,120]
[343164597,1732390245507,-500.0,0.00055989,120]
[343164598,1732390245517,-307.09,0.00055989,120]
[343164599,1732390245526,-500.0,0.00055989,120]
[343164600,1732390245536,-500.0,0.00055989,120]
[343164601,1732390245545,-500.0,0.00055989,120]
[343164602,1732390245555,-500.0,0.00055989,120]
[343164603,1732390245564,-500.0,0.00055989,120]
[343164605,1732390245574,-500.0,0.00055989,120]
[343164607,1732390245583,-500.0,0.00055989,120]
[343164608,1732390245593,-153.65268615,0.00055989,120]
[343164609,1732390245603,-156717.75773513,0.00055989,7]
[343164610,1732390245614,-617.98,0.00055989,120]
[343164611,1732390245623,-617.98,0.00055989,120]
[343164612,1732390245633,-617.98,0.00055989,120]
[343164613,1732390245642,-617.98,0.00055989,120]
[343164614,1732390245651,-617.98,0.00055989,120]
[343164615,1732390245661,-617.98,0.00055989,120]
[343164616,1732390245670,-617.98,0.00055989,120]
[343164617,1732390245680,-617.98,0.00055989,120]
[343164618,1732390245689,-617.98,0.00055989,120]
[343164619,1732390245699,-617.98,0.00055989,120]
[343164620,1732390245709,-617.98,0.00055989,120]
[343164621,1732390245718,-617.98,0.00055989,120]
[343164622,1732390245727,-617.98,0.00055989,120]
[343164623,1732390245738,-617.98,0.00055989,120]
[343164624,1732390245747,-617.98,0.00055989,120]
[343164625,1732390245758,-617.98,0.00055989,120]
[343164626,1732390245767,-617.98,0.00055989,120]
[343164627,1732390245777,-617.98,0.00055989,120]
[343164628,1732390245787,-618.06918093,0.00055989,120]
[343164629,1732390245796,-500.0,0.00055989,120]
[343164630,1732390245806,-500.0,0.00055989,120]
[343164631,1732390245815,-500.0,0.00055989,120]
[343164632,1732390245824,-500.0,0.00055989,120]
[343164633,1732390245833,-500.0,0.00055989,120]
[343164634,1732390245842,-500.0,0.00055989,120]
[343164635,1732390245851,-500.0,0.00055989,120]
[343164636,1732390245865,-500.0,0.00055989,120]
[343164637,1732390245875,-500.0,0.00055989,120]
[343164638,1732390245884,-500.0,0.00055989,120]
[343164639,1732390245893,-500.0,0.00055989,120]
[343164640,1732390245902,-500.0,0.00055989,120]
[343164641,1732390245911,-500.0,0.00055989,120]
[343164642,1732390245920,-500.0,0.00055989,120]
[343164643,1732390245929,-500.0,0.00055989,120]
[343164644,1732390245938,-500.0,0.00055989,120]
[343164645,1732390245947,-500.0,0.00055989,120]
[343164646,1732390245957,-355.32,0.00055989,120]
[343164647,1732390245966,-500.0,0.00055989,120]
[343164648,1732390245977,-500.0,0.00055989,120]
[343164649,1732390245986,-500.0,0.00055989,120]
[343164650,1732390245995,-500.0,0.00055989,120]
[343164651,1732390246005,-500.0,0.00055989,120]
[343164652,1732390246015,-500.0,0.00055989,120]
[343164653,1732390246025,-500.0,0.00055989,120]
[343164654,1732390246034,-500.0,0.00055989,120]
[343164655,1732390246044,-500.0,0.00055989,120]
[343164656,1732390246054,-500.0,0.00055989,120]
[343164657,1732390246064,-500.0,0.00055989,120]
[343164658,1732390246074,-500.0,0.00055989,120]
[343164659,1732390246085,-500.0,0.00055989,120]
[343164660,1732390246093,-500.0,0.00055989,120]
[343164661,1732390246103,-500.0,0.00055989,120]
[343164662,1732390246113,-500.0,0.00055989,120]
[343164663,1732390246122,-500.0,0.00055989,120]
[343164664,1732390246131,-500.0,0.00055989,120]
[343164666,1732390246140,-486.74797786,0.00055989,120]
[343164668,1732390246150,-500.0,0.00055989,120]
[343164669,1732390246159,-500.0,0.00055989,120]
[343164670,1732390246168,-500.0,0.00055989,120]
[343164671,1732390246179,-500.0,0.00055989,120]
[343164672,1732390246188,-500.0,0.00055989,120]
[343164673,1732390246197,-500.0,0.00055989,120]
[343164674,1732390246207,-500.0,0.00055989,120]
[343164675,1732390246216,-500.0,0.00055989,120]
[343164676,1732390246225,-500.0,0.00055989,120]
[343164677,1732390246234,-500.0,0.00055989,120]
[343164678,1732390246243,-500.0,0.00055989,120]
[343164679,1732390246253,-500.0,0.00055989,120]
[343164680,1732390246262,-500.0,0.00055989,120]
[343164681,1732390246272,-500.0,0.00055989,120]
[343164682,1732390246282,-500.0,0.00055989,120]
[343164683,1732390246293,-500.0,0.00055989,120]
[343164684,1732390246303,-233.86652016,0.00055989,120]
[343164685,1732390246311,-151.0,0.00055989,120]
[343164686,1732390246320,-500.0,0.00055989,120]
[343164687,1732390246330,-500.0,0.00055989,120]
[343164688,1732390246339,-500.0,0.00055989,120]
[343164689,1732390246347,-500.0,0.00055989,120]
[343164690,1732390246359,-500.0,0.00055989,120]
[343164691,1732390246368,-500.0,0.00055989,120]
[343164692,1732390246378,-500.0,0.00055989,120]
[343164693,1732390246387,-500.0,0.00055989,120]
[343164694,1732390246396,-500.0,0.00055989,120]
[343164695,1732390246407,-500.0,0.00055989,120]
[343164696,1732390246416,-500.0,0.00055989,120]
[343164697,1732390246427,-500.0,0.00055989,120]
[343164698,1732390246437,-500.0,0.00055989,120]
[343164699,1732390246447,-500.0,0.00055989,120]
[343164700,1732390246456,-500.0,0.00055989,120]
[343164701,1732390246466,-500.0,0.00055989,120]
[343164702,1732390246476,-500.0,0.00055989,120]
[343164703,1732390246485,-405.67,0.00055989,120]
[343164704,1732390246495,-500.0,0.00055989,120]
[343164705,1732390246504,-500.0,0.00055989,120]
[343164706,1732390246514,-500.0,0.00055989,120]
[343164707,1732390246524,-550.19,0.00055989,120]
[343164708,1732390246533,-500.0,0.00055989,120]
[343164709,1732390246543,-500.0,0.00055989,120]
[343164710,1732390246553,-500.0,0.00055989,120]
[343164711,1732390246563,-500.0,0.00055989,120]
[343164712,1732390246572,-500.0,0.00055989,120]
[343164713,1732390246582,-500.0,0.00055989,120]
[343164714,1732390246591,-500.0,0.00055989,120]
[343164715,1732390246600,-500.0,0.00055989,120]
[343164716,1732390246611,-500.0,0.00055989,120]
[343164717,1732390246619,-500.0,0.00055989,120]
[343164718,1732390246629,-526.00494186,0.00055989,120]
[343164719,1732390246638,-151.0,0.00055989,120]
[343164720,1732390246647,-500.0,0.00055989,120]
[343164721,1732390246657,-500.0,0.00055989,120]
[343164722,1732390246666,-500.0,0.00055989,120]
[343164723,1732390246675,-500.0,0.00055989,120]
[343164724,1732390246685,-500.0,0.00055989,120]
[343164725,1732390246694,-500.0,0.00055989,120]
[343164726,1732390246704,-521.0,0.00055989,120]
[343164727,1732390246715,-500.0,0.00055989,120]
[343164728,1732390246724,-521.0,0.00055989,120]
[343164729,1732390246733,-500.0,0.00055989,120]
[343164730,1732390246743,-521.0,0.00055989,120]
[343164731,1732390246752,-500.0,0.00055989,120]
[343164732,1732390246762,-521.0,0.00055989,120]
[343164733,1732390246771,-500.0,0.00055989,120]
[343164734,1732390246780,-521.0,0.00055989,120]
[343164735,1732390246790,-500.0,0.00055989,120]
[343164736,1732390246799,-521.0,0.00055989,120]
[343164737,1732390246809,-500.0,0.00055989,120]
[343164738,1732390246819,-521.0,0.00055989,120]
[343164739,1732390246828,-521.0,0.00055989,120]
[343164740,1732390246837,-500.0,0.00055989,120]
[343164741,1732390246847,-521.0,0.00055989,120]
[343164742,1732390246858,-500.0,0.00055989,120]
[343164743,1732390246868,-521.0,0.00055989,120]
[343164744,1732390246877,-569.75709713,0.00055989,120]
[343164745,1732390246887,-521.0,0.00055989,120]
[343164746,1732390246896,-521.0,0.00055989,120]
[343164747,1732390246905,-521.0,0.00055989,120]
[343164748,1732390246915,-521.0,0.00055989,120]
[343164749,1732390246926,-521.0,0.00055989,120]
[343164750,1732390246936,-521.0,0.00055989,120]
[343164751,1732390246945,-521.0,0.00055989,120]
[343164752,1732390246954,-521.0,0.00055989,120]
[343164753,1732390246965,-521.14515026,0.00055989,120]
[343164754,1732390246974,-151.0,0.00055989,30]
[343164755,1732390246983,-151.0,0.00055989,30]
[343164756,1732390246993,-508.32,0.00055989,30]
[343164757,1732390247002,-508.32,0.00055989,30]
[343164758,1732390247013,-508.32,0.00055989,30]
[343164759,1732390247024,-508.32,0.00055989,30]
[343164760,1732390247034,-508.32,0.00055989,30]
[343164761,1732390247043,-508.32,0.00055989,30]
[343164762,1732390247052,-508.32,0.00055989,30]
[343164763,1732390247061,-508.32,0.00055989,30]
[343164764,1732390247070,-508.32,0.00055989,30]
[343164765,1732390247078,-729.99,0.00055989,120]
[343164766,1732390247087,-508.32,0.00055989,30]
[343164767,1732390247096,-729.99,0.00055989,120]
[343164768,1732390247105,-508.32,0.00055989,30]
[343164769,1732390247126,-729.99,0.00055989,120]
[343164770,1732390247135,-729.99,0.00055989,120]
[343164771,1732390247144,-508.32,0.00055989,30]
[343164772,1732390247153,-729.99,0.00055989,120]
[343164773,1732390247163,-508.32,0.00055989,30]
[343164774,1732390247171,-729.99,0.00055989,120]
[343164775,1732390247180,-508.32,0.00055989,30]
[343164776,1732390247191,-729.99,0.00055989,120]
[343164777,1732390247200,-508.32,0.00055989,30]
[343164778,1732390247210,-729.99,0.00055989,120]
[343164779,1732390247219,-508.32,0.00055989,30]
[343164780,1732390247229,-729.99,0.00055989,120]
[343164781,1732390247238,-508.32,0.00055989,30]
[343164782,1732390247247,-729.99,0.00055989,120]
[343164783,1732390247256,-508.32,0.00055989,30]
[343164784,1732390247265,-729.99,0.00055989,120]
[343164785,1732390247274,-508.54657734,0.00055989,30]
[343164786,1732390247283,-500.0,0.00055989,120]
[343164787,1732390247292,-729.99,0.00055989,120]
[343164788,1732390247301,-500.0,0.00055989,120]
[343164789,1732390247310,-500.0,0.00055989,120]
[343164790,1732390247318,-729.99,0.00055989,120]
[343164791,1732390247326,-729.99,0.00055989,120]
[343164792,1732390247335,-500.0,0.00055989,120]
[343164793,1732390247344,-729.99,0.00055989,120]
[343164794,1732390247355,-307.26747707,0.00055989,120]
[343164795,1732390247367,-729.99,0.00055989,120]
[343164796,1732390247377,-730.04091167,0.00055989,120]
[343164797,1732390247387,-151.0,0.00055989,120]
[343164798,1732390247397,-208.403674,0.00055989,120]
[343164799,1732390247408,-208.403674,0.00055989,120]
[343164800,1732390247418,-500.0,0.00055989,120]
[343164801,1732390247431,-500.0,0.00055989,120]
[343164802,1732390247441,-500.0,0.00055989,120]
[343164803,1732390247451,-500.0,0.00055989,120]
[343164804,1732390247460,-500.0,0.00055989,120]
[343164805,1732390247470,-500.0,0.00055989,120]
[343164806,1732390247479,-500.0,0.00055989,120]
[343164807,1732390247489,-500.0,0.00055989,120]
[343164808,1732390247499,-500.0,0.00055989,120]
[343164809,1732390247508,-500.0,0.00055989,120]
[343164810,1732390247518,-500.0,0.00055989,120]
[343164811,1732390247528,-500.0,0.00055989,120]
[343164812,1732390247538,-500.0,0.00055989,120]
[343164813,1732390247548,-500.0,0.00055989,120]
[343164814,1732390247558,-254.35273255,0.00055989,120]